bitfinex-derivatives/quotes_SOLF0:USTF0_20260110
["timestamp","ask_amount","ask_price","bid_price","bid_amount"]
[1768006041610,86.84,135.87,135.81,1.62809134]
[1768006041810,5.3905321,135.86,135.81,1.62809134]
[1768006042010,86.84,135.87,135.81,1.62809134]
[1768006042318,5.39053207,135.86,135.81,1.62809134]
[1768006042517,86.84,135.87,135.81,1.62809134]
[1768006042717,5.3897016,135.86,135.81,1.62809134]
[1768006043017,86.84,135.87,135.81,1.62809134]
[1768006043216,5.38971835,135.86,135.81,1.62809134]
[1768006043408,86.84,135.87,135.81,1.62809134]
[1768006043607,5.38905476,135.86,135.81,1.62809134]
[1768006043817,86.84,135.87,135.81,1.62809134]
[1768006044015,5.38907151,135.86,135.81,1.62809134]
[1768006044218,86.84,135.87,135.81,1.62809134]
[1768006044419,5.38845579,135.86,135.81,1.62809134]
[1768006044606,86.84,135.87,135.81,1.62809134]
[1768006044810,5.38845579,135.86,135.81,1.62809134]
[1768006045011,86.84,135.87,135.81,1.62809134]
[1768006045206,5.38842402,135.86,135.81,1.62809134]
[1768006045412,86.84,135.87,135.81,1.62809134]
[1768006045611,5.38793368,135.86,135.81,1.62809134]
[1768006045821,86.84,135.87,135.81,1.62809134]
[1768006046022,5.38793368,135.86,135.81,1.62809134]
[1768006046223,86.84,135.87,135.81,1.62809134]
[1768006046523,5.38720603,135.86,135.81,1.62809134]
[1768006046822,86.84,135.87,135.81,1.62809134]
[1768006047023,5.38720603,135.86,135.81,1.62809134]
[1768006047223,86.84,135.87,135.81,1.62809134]
[1768006047516,5.38656004,135.86,135.81,1.62809134]
[1768006047722,86.84,135.87,135.81,1.62809134]
[1768006047925,5.38656004,135.86,135.81,1.62809134]
[1768006048120,86.84,135.87,135.81,1.62809134]
[1768006053919,86.84,135.87,135.82,1.62063942]
[1768006054125,93.4715,135.9,135.82,1.62063942]
[1768006054423,5.38319486,135.89,135.82,1.62063942]
[1768006054626,93.4715,135.9,135.82,1.62063942]
[1768006054827,5.38320268,135.89,135.84,0.04977097]
[1768006055026,93.4715,135.9,135.84,0.04977097]
[1768006055225,5.38322693,135.89,135.84,0.04977097]
[1768006055522,93.4715,135.9,135.84,0.04977097]
[1768006055715,5.38380676,135.89,135.84,0.04977097]
[1768006055915,93.4715,135.9,135.84,0.04977097]
[1768006056126,5.38380505,135.89,135.84,0.04977097]
[1768006056327,93.4715,135.9,135.84,0.04977097]
[1768006056526,5.38277148,135.89,135.84,0.04977097]
[1768006056714,93.4715,135.9,135.84,0.04977097]
[1768006056919,5.3827585,135.89,135.84,0.04977097]
[1768006057118,93.4715,135.9,135.84,0.04977097]
[1768006057322,5.38179417,135.89,135.84,0.04977097]
[1768006057522,93.4715,135.9,135.84,0.04977097]
[1768006057723,5.38179417,135.89,135.84,0.04977097]
[1768006058025,93.4715,135.9,135.84,0.04977097]
[1768006058226,5.38179962,135.89,135.84,0.04977097]
[1768006058429,93.4715,135.9,135.84,0.04977097]
[1768006058630,5.38091223,135.89,135.84,0.04977097]
[1768006058925,93.4715,135.9,135.84,0.04977097]
[1768006059120,5.38091223,135.89,135.84,0.04977097]
[1768006059321,93.4715,135.9,135.84,0.04977097]
[1768006059530,5.38010807,135.89,135.84,0.04977097]
[1768006059731,93.4715,135.9,135.84,0.04977097]
[1768006059924,5.38047076,135.89,135.84,0.04977097]
[1768006060123,93.4715,135.9,135.84,0.04977097]
[1768006060428,5.3799584,135.89,135.84,0.04977097]
[1768006060726,93.4715,135.9,135.84,0.04977097]
[1768006060928,5.37995466,135.89,135.84,0.04977097]
[1768006061128,93.4715,135.9,135.84,0.04977097]
[1768006062130,12.01109826,135.89,135.84,0.04977097]
[1768006062322,6.6317,135.89,135.84,0.04977097]
[1768006062827,6.6322,135.88,135.84,0.04977097]
[1768006068427,93.4715,135.9,135.84,0.04977097]
[1768006073437,6.6316,135.89,135.84,0.04977097]
[1768006073627,86.84,135.9,135.84,0.04977097]
[1768006073834,2.28115351,135.89,135.84,0.04977097]
[1768006074131,6.6321,135.88,135.84,0.04977097]
[1768006074634,2.28115351,135.89,135.8,8.24837862]
[1768006074830,8.91305351,135.89,135.81,1.61287862]
[1768006075033,0.05351702,135.87,135.81,1.61287862]
[1768006077742,0.05351702,135.87,135.83,0.04775229]
[1768006084150,0.05351702,135.87,135.83,1.65576163]
[1768006096364,6.6309,135.91,135.84,1.60800934]
[1768006096570,5.28857258,135.9,135.84,1.60800934]
[1768006096765,1.45827952,135.92,135.84,1.60800934]
[1768006096967,5.28861185,135.91,135.84,1.60800934]
[1768006097165,5.28861185,135.9,135.84,1.60800934]
[1768006097366,1.45827952,135.92,135.84,1.60800934]
[1768006097567,5.28745359,135.91,135.84,8.24190934]
[1768006097874,1.45827952,135.92,135.84,8.24190934]
[1768006097875,5.28745359,135.9,135.86,1.66123426]
[1768006098071,1.45827952,135.92,135.86,1.66123426]
[1768006098264,5.28795267,135.91,135.86,1.66123426]
[1768006098464,5.28795267,135.9,135.86,1.66123426]
[1768006098771,94.90817952,135.93,135.86,1.66123426]
[1768006099068,5.28709138,135.92,135.86,1.66123426]
[1768006099269,94.90817952,135.93,135.86,1.66123426]
[1768006099473,5.28442528,135.92,135.86,1.66123426]
[1768006099772,94.90817952,135.93,135.86,1.66123426]
[1768006104777,6.6302,135.92,135.86,0.05322492]
[1768006105072,1.45827952,135.91,135.86,0.05322492]
[1768006105777,8.08907952,135.91,135.86,0.05322492]
[1768006105979,1.45827952,135.89,135.86,0.05322492]
[1768006108273,1.45827952,135.91,135.86,0.05322492]
[1768006115290,6.6304,135.92,135.86,0.05322492]
[1768006115489,1.45827952,135.91,135.86,0.05322492]
[1768006126102,1.45827952,135.91,135.86,1.57432239]
[1768006129208,1.45827952,135.91,135.86,0.05322492]
[1768006134702,1.45827952,135.89,135.82,8.2018563]
[1768006135707,8.08997952,135.89,135.82,8.2018563]
[1768006136709,0.04644101,135.87,135.82,8.2018563]
[1768006142307,0.04644101,135.87,135.83,1.5671563]
[1768006142509,6.6307,135.91,135.84,1.5671563]
[1768006143815,6.6307,135.91,135.86,0.04718529]
[1768006146314,6.6307,135.91,135.86,1.58432693]
[1768006146717,93.4503,135.92,135.86,1.58432693]
[1768006147014,6.6303,135.92,135.86,1.58432693]
[1768006158522,6.6307,135.91,135.86,0.04718529]
[1768006158720,8.90960227,135.91,135.86,0.04718529]
[1768006162024,6.6307,135.91,135.86,0.04718529]
[1768006196563,86.82,135.9,135.86,0.04718529]
[1768006197658,6.6317,135.89,135.86,0.04718529]
[1768006198560,6.6317,135.89,135.82,8.06117844]
[1768006198753,6.67839785,135.89,135.82,8.06117844]
[1768006202053,6.67839785,135.89,135.82,1.42657844]
[1768006211866,6.6308,135.91,135.84,1.45386432]
[1768006212062,6.6308,135.91,135.84,1.50327306]
[1768006212663,6.6308,135.91,135.85,1.45386432]
[1768006220774,8.0890621,135.91,135.85,1.45386432]
[1768006222270,5.22897613,135.9,135.85,1.45386432]
[1768006222569,8.0890621,135.91,135.85,1.45386432]
[1768006223680,1.4582621,135.89,135.84,0.04940874]
[1768006224177,1.4582621,135.89,135.83,1.45386432]
[1768006224474,1.4582621,135.89,135.85,0.04855251]
[1768006230485,8.0899621,135.89,135.85,0.04855251]
[1768006237384,94.9099621,135.89,135.85,0.04855251]
[1768006260504,93.4517,135.89,135.85,0.04855251]
[1768006261101,5.27721268,135.88,135.85,0.04855251]
[1768006261302,93.4517,135.89,135.85,0.04855251]
[1768006261500,5.27816165,135.88,135.85,0.04855251]
[1768006261700,93.4517,135.89,135.85,0.04855251]
[1768006261900,5.27816897,135.88,135.85,0.04855251]
[1768006262093,93.4517,135.89,135.85,0.04855251]
[1768006262291,5.27821216,135.88,135.85,0.04855251]
[1768006262496,93.4517,135.89,135.85,0.04855251]
[1768006262697,5.27899044,135.88,135.85,0.04855251]
[1768006262897,93.4517,135.89,135.85,0.04855251]
[1768006263098,5.27899044,135.88,135.85,0.04855251]
[1768006263298,93.4517,135.89,135.85,0.04855251]
[1768006263604,5.27999233,135.88,135.85,0.04855251]
[1768006263802,93.4517,135.89,135.85,0.04855251]
[1768006264004,5.28030486,135.88,135.85,0.04855251]
[1768006264205,93.4517,135.89,135.85,0.04855251]
[1768006264400,5.28144828,135.88,135.85,0.04855251]
[1768006264599,93.4517,135.89,135.85,0.04855251]
[1768006264799,5.28145756,135.88,135.85,0.04855251]
[1768006265001,93.4517,135.89,135.85,0.04855251]
[1768006265309,5.28288451,135.88,135.85,0.04855251]
[1768006265493,93.4517,135.89,135.85,0.04855251]
[1768006265698,5.28288451,135.88,135.85,0.04855251]
[1768006265904,93.4517,135.89,135.85,0.04855251]
[1768006266096,5.28286813,135.88,135.85,0.04855251]
[1768006266311,93.4517,135.89,135.85,0.04855251]
[1768006266510,5.28478802,135.88,135.85,0.04855251]
[1768006266713,93.4517,135.89,135.85,0.04855251]
[1768006266904,5.28478802,135.88,135.85,0.04855251]
[1768006267209,93.4517,135.89,135.85,0.04855251]
[1768006267410,5.28511874,135.88,135.85,0.04855251]
[1768006267612,93.4517,135.89,135.85,0.04855251]
[1768006267806,5.28510603,135.88,135.85,0.04855251]
[1768006268105,93.4517,135.89,135.85,0.04855251]
[1768006268305,5.28509999,135.88,135.85,0.04855251]
[1768006268507,93.4517,135.89,135.85,0.04855251]
[1768006268711,5.28591522,135.88,135.85,0.04855251]
[1768006268911,93.4517,135.89,135.85,0.04855251]
[1768006269116,5.28591518,135.88,135.85,0.04855251]
[1768006269317,93.4517,135.89,135.85,0.04855251]
[1768006269508,5.28609045,135.88,135.85,0.04855251]
[1768006269709,93.4517,135.89,135.85,0.04855251]
[1768006269909,5.28609047,135.88,135.85,0.04855251]
[1768006270109,93.4517,135.89,135.85,0.04855251]
[1768006270312,5.2860937,135.88,135.85,0.04855251]
[1768006270609,93.4517,135.89,135.85,0.04855251]
[1768006270810,5.28610116,135.88,135.85,0.04855251]
[1768006271010,93.4517,135.89,135.85,0.04855251]
[1768006271209,5.28612472,135.88,135.85,0.04855251]
[1768006271415,93.4517,135.89,135.85,0.04855251]
[1768006271606,5.28614416,135.88,135.85,0.04855251]
[1768006271808,93.4517,135.89,135.85,0.04855251]
[1768006272009,5.28614416,135.88,135.85,0.04855251]
[1768006272209,93.4517,135.89,135.85,0.04855251]
[1768006272411,5.28636123,135.88,135.85,0.04855251]
[1768006272609,93.4517,135.89,135.85,0.04855251]
[1768006272806,5.28636123,135.88,135.85,0.04855251]
[1768006273011,93.4517,135.89,135.85,0.04855251]
[1768006273213,5.28636123,135.88,135.85,0.04855251]
[1768006273415,93.4517,135.89,135.85,0.04855251]
[1768006273610,5.2866119,135.88,135.85,0.04855251]
[1768006273812,93.4517,135.89,135.85,0.04855251]
[1768006274010,5.2866119,135.88,135.85,0.04855251]
[1768006274305,93.4517,135.89,135.85,0.04855251]
[1768006274507,5.28690631,135.88,135.85,0.04855251]
[1768006274807,93.4517,135.89,135.85,0.04855251]
[1768006275008,5.28690264,135.88,135.85,0.04855251]
[1768006275207,93.4517,135.89,135.85,0.04855251]
[1768006275407,5.28699288,135.88,135.85,0.04855251]
[1768006275708,93.4517,135.89,135.85,0.04855251]
[1768006275907,5.28699288,135.88,135.85,0.04855251]
[1768006276112,93.4517,135.89,135.85,0.04855251]
[1768006276412,5.28701061,135.88,135.85,0.04855251]
[1768006276712,93.4517,135.89,135.85,0.04855251]
[1768006276912,5.28530665,135.88,135.85,0.04855251]
[1768006277114,93.4517,135.89,135.85,0.04855251]
[1768006277310,5.28490637,135.88,135.85,0.04855251]
[1768006277514,93.4517,135.89,135.85,0.04855251]
[1768006277814,5.28427458,135.88,135.85,0.04855251]
[1768006278014,93.4517,135.89,135.85,0.04855251]
[1768006278216,5.28494259,135.88,135.85,0.04855251]
[1768006278416,93.4517,135.89,135.85,0.04855251]
[1768006278617,5.28487408,135.88,135.85,0.04855251]
[1768006278818,93.4517,135.89,135.85,0.04855251]
[1768006279022,5.2848577,135.88,135.85,0.04855251]
[1768006279322,93.4517,135.89,135.85,0.04855251]
[1768006279522,5.28494646,135.88,135.85,0.04855251]
[1768006279719,93.4517,135.89,135.85,0.04855251]
[1768006280015,5.28476833,135.88,135.85,0.04855251]
[1768006280220,6.6321,135.88,135.85,0.04855251]
[1768006281923,6.6321,135.88,135.82,1.46667062]
[1768006282119,6.68317694,135.88,135.82,1.46667062]
[1768006285631,86.89107694,135.88,135.82,1.46667062]
[1768006286826,86.89107694,135.88,135.77,2.27864175]
[1768006286827,6.6307,135.91,135.83,1.46667062]
[1768006287022,92.09229386,135.9,135.83,1.46667062]
[1768006287224,5.25229386,135.89,135.84,1.52257083]
[1768006288024,86.84,135.9,135.84,1.52257083]
[1768006288628,86.84,135.9,135.84,8.15637083]
[1768006297548,86.84,135.9,135.84,1.52257083]
[1768006301249,89.11864175,135.9,135.84,1.52257083]
[1768006316061,86.84,135.9,135.84,1.52257083]
[1768006319764,95.74984175,135.9,135.84,0.05590021]
[1768006320462,1.45830068,135.89,135.84,0.05590021]
[1768006331672,86.84,135.9,135.85,1.378565]
[1768006332063,1.45830068,135.91,135.85,1.378565]
[1768006346984,6.6302,135.92,135.85,1.378565]
[1768006347186,8.08850068,135.92,135.85,1.378565]
[1768006347389,8.08850068,135.92,135.85,8.011965]
[1768006347785,8.08850068,135.92,135.87,0.04986385]
[1768006350885,1.45830068,135.92,135.87,0.04986385]
[1768006351982,94.90790068,135.94,135.87,0.04986385]
[1768006364600,1.45830068,135.9,135.87,0.04986385]
[1768006370502,1.45830068,135.9,135.83,6.6341]
[1768006370699,1.50654483,135.9,135.83,6.6341]
[1768006370895,1.50654483,135.9,135.83,8.15014699]
[1768006372108,1.50654483,135.9,135.84,1.51604699]
[1768006375702,0.04824415,135.9,135.84,1.51604699]
[1768006377311,0.04824415,135.9,135.81,1.45830068]
[1768006377312,0.04824415,135.9,135.82,1.51604699]
[1768006377810,8.08900068,135.91,135.82,1.51604699]
[1768006378511,0.04891053,135.88,135.82,1.51604699]
[1768006378712,0.04891053,135.88,135.83,1.51604699]
[1768006380614,0.04891053,135.88,135.83,8.15044699]
[1768006381316,0.04891053,135.88,135.84,1.51604699]
[1768006383220,0.04891053,135.88,135.84,8.14984699]
[1768006383522,0.04891053,135.88,135.84,1.51604699]
[1768006384613,0.04891053,135.88,135.85,8.10914713]
[1768006384813,0.04891053,135.88,135.86,1.47564713]
[1768006398438,0.04891053,135.88,135.84,1.47564713]
[1768006399641,0.04891053,135.88,135.84,8.10954713]
[1768006400036,0.04891053,135.88,135.85,1.47564713]
[1768006441473,0.04891053,135.88,135.82,1.47729901]
[1768006442567,0.04891053,135.88,135.83,6.6344]
[1768006442769,0.04891053,135.88,135.84,1.47729901]
[1768006444373,0.04891053,135.88,135.84,9.901e-05]
[1768006445774,6.68131053,135.88,135.84,9.901e-05]
[1768006455584,7.38907139,135.88,135.81,1.38141349]
[1768006458400,0.71646785,135.86,135.81,1.38141349]
[1768006459596,0.04739731,135.85,135.81,1.38141349]
[1768006492310,0.04739731,135.85,135.81,8.01671349]
[1768006492512,2.25757692,135.9,135.82,1.47628015]
[1768006492713,5.24453905,135.89,135.82,1.52553461]
[1768006493012,5.24453905,135.88,135.82,1.52553461]
[1768006493313,0.80146447,135.89,135.82,1.52553461]
[1768006493518,5.24478276,135.88,135.82,1.52553461]
[1768006493718,7.43306447,135.89,135.82,1.52553461]
[1768006494017,5.24460216,135.88,135.82,1.52553461]
[1768006494211,7.43306447,135.89,135.82,1.52553461]
[1768006494410,5.24460216,135.88,135.82,1.52553461]
[1768006494612,7.43306447,135.89,135.82,1.52553461]
[1768006494812,5.2448654,135.88,135.82,1.52553461]
[1768006495012,7.43306447,135.89,135.82,1.52553461]
[1768006495209,5.24504236,135.88,135.82,1.52553461]
[1768006495514,7.43306447,135.89,135.82,1.52553461]
[1768006495821,5.24532198,135.88,135.82,1.52553461]
[1768006496016,7.43306447,135.89,135.82,1.52553461]
[1768006496212,6.70318989,135.88,135.82,1.52553461]
[1768006496422,1.45787156,135.88,135.82,1.52553461]
[1768006500326,5.24690537,135.87,135.82,1.52553461]
[1768006500523,1.45787156,135.88,135.82,1.52553461]
[1768006502534,7.43306447,135.89,135.82,1.52553461]
[1768006502832,5.24574836,135.88,135.82,1.52553461]
[1768006503032,7.43306447,135.89,135.82,1.52553461]
[1768006503227,5.24573207,135.88,135.82,1.52553461]
[1768006503430,7.43306447,135.89,135.82,1.52553461]
[1768006503730,5.2457092,135.88,135.82,1.52553461]
[1768006503928,7.43306447,135.89,135.82,1.52553461]
[1768006504129,5.2457092,135.88,135.82,1.52553461]
[1768006504329,7.43306447,135.89,135.82,1.52553461]
[1768006504532,5.245469,135.88,135.82,1.52553461]
[1768006504732,7.43306447,135.89,135.82,1.52553461]
[1768006504933,5.245469,135.88,135.82,1.52553461]
[1768006505233,7.43306447,135.89,135.82,1.52553461]
[1768006505435,5.24524344,135.88,135.82,1.52553461]
[1768006505634,7.43306447,135.89,135.82,1.52553461]
[1768006505835,5.24524344,135.88,135.82,1.52553461]
[1768006506134,7.43306447,135.89,135.82,1.52553461]
[1768006506324,5.2450847,135.88,135.82,1.52553461]
[1768006506523,7.43306447,135.89,135.82,1.52553461]
[1768006506729,5.2450424,135.88,135.82,1.52553461]
[1768006506931,7.43306447,135.89,135.82,1.52553461]
[1768006507230,5.2450424,135.88,135.82,1.52553461]
[1768006507531,7.43306447,135.89,135.82,1.52553461]
[1768006507830,5.24486317,135.88,135.82,1.52553461]
[1768006508031,7.43306447,135.89,135.82,1.52553461]
[1768006508230,5.24486317,135.88,135.82,1.52553461]
[1768006508530,7.43306447,135.89,135.82,1.52553461]
[1768006508726,5.24470285,135.88,135.82,1.52553461]
[1768006508941,7.43306447,135.89,135.82,1.52553461]
[1768006509140,5.24440981,135.88,135.82,1.52553461]
[1768006509337,7.43306447,135.89,135.82,1.52553461]
[1768006509637,5.24426654,135.88,135.82,1.52553461]
[1768006509838,7.43306447,135.89,135.82,1.52553461]
[1768006510039,6.07407545,135.88,135.82,1.52553461]
[1768006510337,0.82980891,135.88,135.82,1.52553461]
[1768006522254,7.46190891,135.88,135.82,1.52553461]
[1768006523553,0.84704147,135.86,135.82,0.04925446]
[1768006524550,7.48024147,135.86,135.82,0.04925446]
[1768006525254,0.84946391,135.85,135.82,0.04925446]
[1768006525649,0.84946391,135.84,135.78,1.45771772]
[1768006526354,0.85065831,135.83,135.78,1.45771772]
[1768006527755,7.48525831,135.83,135.78,1.45771772]
[1768006529355,0.85416006,135.82,135.76,1.45771772]
[1768006529559,7.48926006,135.82,135.76,1.45771772]
[1768006530059,0.85530045,135.81,135.76,1.45771772]
[1768006539758,7.49100045,135.81,135.76,1.45771772]
[1768006546074,87.77199671,135.83,135.76,1.45771772]
[1768006546273,0.87199671,135.82,135.76,1.45771772]
[1768006547576,7.50709671,135.82,135.76,1.45771772]
[1768006562983,0.05197047,135.8,135.76,1.45771772]
[1768006583605,0.05197047,135.8,135.76,8.09551772]
[1768006586405,0.05197047,135.8,135.76,1.45771772]
[1768006594216,0.05197047,135.8,135.75,1.50163846]
[1768006594407,1.51135335,135.8,135.75,1.50163846]
[1768006594608,1.45938288,135.8,135.75,1.50163846]
[1768006602328,0.90287297,135.79,135.73,1.50163846]
[1768006610427,7.53937297,135.79,135.73,1.50163846]
[1768006611826,0.90936206,135.81,135.73,1.50163846]
[1768006612026,0.90936206,135.8,135.73,1.50163846]
[1768006613626,0.90936206,135.8,135.73,8.14083846]
[1768006614139,0.90936206,135.8,135.74,1.52933425]
[1768006624134,7.54536206,135.8,135.74,1.52933425]
[1768006645049,0.91593334,135.79,135.74,1.52933425]
[1768006653250,0.91789591,135.81,135.75,1.56780384]
[1768006654555,0.91789591,135.81,135.76,6.6379]
[1768006658453,0.91789591,135.81,135.76,8.20570384]
[1768006658960,0.91789591,135.81,135.76,1.56780384]
[1768006661063,0.05649342,135.8,135.76,1.56780384]
[1768006666961,89.20147906,135.85,135.77,1.56780384]
[1768006666962,0.97593643,135.85,135.77,1.56780384]
[1768006667164,0.97593643,135.85,135.77,1.62186218]
[1768006668070,0.97593643,135.85,135.78,6.6369]
[1768006668269,0.97593643,135.85,135.79,1.56780384]
[1768006668774,0.97593643,135.85,135.81,0.05112746]
[1768006671878,2.45593643,135.85,135.81,0.05112746]
[1768006674078,0.97593643,135.85,135.81,0.05112746]
[1768006681773,0.97965147,135.87,135.81,1.59087695]
[1768006682575,0.97965147,135.86,135.81,1.59087695]
[1768006682779,0.97965147,135.86,135.81,0.05112746]
[1768006683382,7.61275147,135.86,135.81,0.05112746]
[1768006693002,0.97965147,135.86,135.81,0.05112746]
[1768006707404,0.97965147,135.86,135.81,1.61703011]
[1768006710507,0.97965147,135.86,135.81,8.25243011]
[1768006714505,6.6316,135.89,135.83,1.55607576]
[1768006714506,0.98377882,135.89,135.83,1.55607576]
[1768006715421,0.98377882,135.89,135.85,0.05093328]
[1768006723014,0.98404527,135.92,135.85,1.60700904]
[1768006723208,0.98404527,135.91,135.85,1.60700904]
[1768006723522,0.98404527,135.91,135.85,1.55607576]
[1768006723716,0.98404527,135.91,135.87,0.04643466]
[1768006730013,0.98115733,135.89,135.87,0.04643466]
[1768006732110,0.98115733,135.89,135.83,8.26425556]
[1768006735712,0.04866385,135.87,135.85,0.04788293]
[1768006761634,0.98092173,135.9,135.85,1.60234866]
[1768006789962,6.6304,135.92,135.85,1.60234866]
[1768006790265,7.61028262,135.92,135.85,1.60234866]
[1768006790566,0.97988262,135.91,135.85,1.60234866]
[1768006791267,7.61058262,135.91,135.85,1.60234866]
[1768006806784,0.97996484,135.9,135.85,1.60234866]
[1768006814187,0.97992147,135.92,135.86,1.62302842]
[1768006815583,0.97992147,135.92,135.86,8.25602842]
[1768006817286,0.97992147,135.92,135.87,1.62302842]
[1768006817972,0.97992147,135.92,135.88,0.05206205]
[1768006829982,95.9471354,135.94,135.88,1.67509047]
[1768006830178,94.96737801,135.94,135.88,1.67509047]
[1768006830390,0.97975739,135.93,135.88,1.67509047]
[1768006835695,0.97975739,135.93,135.88,0.05206205]
[1768006836595,1.45787801,135.92,135.88,0.05206205]
[1768006836991,0.98164129,135.91,135.88,0.05206205]
[1768006837191,2.4395193,135.9,135.85,1.550809]
[1768006851212,2.4395193,135.9,135.85,8.184209]
[1768006852014,0.98164129,135.9,135.85,8.184209]
[1768006852218,2.43438842,135.93,135.86,1.58462631]
[1768006852515,0.97651041,135.92,135.86,1.58462631]
[1768006859330,0.97651041,135.92,135.86,8.21762631]
[1768006859733,2.43310794,135.93,135.87,1.58462631]
[1768006860431,2.43310794,135.93,135.88,1.58462631]
[1768006860633,2.43291851,135.95,135.88,1.58462631]
[1768006861524,2.43291851,135.95,135.88,6.632]
[1768006861726,2.43291851,135.95,135.89,1.58462631]
[1768006862427,0.9750405,135.95,135.89,1.58462631]
[1768006862630,0.9750405,135.95,135.89,8.21602631]
[1768006862830,0.05162956,135.93,135.91,0.05616697]
[1768006864334,1.02456064,135.93,135.91,0.05616697]
[1768006876839,0.05162956,135.93,135.91,0.05616697]
[1768006877434,0.97100103,135.96,135.91,0.05616697]
[1768006892957,0.97100103,135.96,135.91,1.66303851]
[1768006958204,6.6271,135.99,135.92,1.61316596]
[1768006958697,7.58060756,135.99,135.92,1.61316596]
[1768006958995,7.58060756,135.99,135.94,0.05501636]
[1768006962998,0.95197652,135.98,135.94,0.05501636]
[1768006963204,0.95197652,135.97,135.94,0.05501636]
[1768006977413,6.6273,135.98,135.94,0.05501636]
[1768006977708,0.94641649,135.98,135.94,0.05501636]
[1768006981921,7.57129786,136.0,135.94,0.05501636]
[1768006982217,7.57129786,136.0,135.94,1.65456589]
[1768006984626,0.94348948,135.99,135.94,1.65456589]
[1768006987724,0.94262022,135.98,135.94,0.05501636]
[1768006987922,2.39874311,135.97,135.94,0.05501636]
[1768006988117,2.39874311,135.97,135.91,1.49664869]
[1768006988519,2.39874311,135.97,135.94,0.04942474]
[1768006994531,0.94234038,135.97,135.94,0.04942474]
[1768007015945,0.93523737,135.99,135.94,0.04942474]
[1768007016138,0.93523737,135.99,135.94,1.66645958]
[1768007033970,7.55576426,136.01,135.94,1.66645958]
[1768007034368,0.92996426,136.0,135.94,1.66645958]
[1768007046585,6.6258,136.01,135.95,1.50623538]
[1768007046778,7.55257346,136.01,135.95,1.50623538]
[1768007046974,0.92677346,136.01,135.95,1.50623538]
[1768007048684,0.92677346,136.01,135.95,8.13483538]
[1768007054392,103.04,136.05,135.97,1.50623538]
[1768007054393,0.92504685,136.04,135.97,1.50623538]
[1768007054592,1.45518197,136.03,135.97,1.50623538]
[1768007055196,1.45518197,136.03,135.99,0.05065588]
[1768007059599,0.92504685,136.04,135.99,1.55689126]
[1768007059794,7.54934685,136.04,135.99,1.55689126]
[1768007063906,0.92324598,136.03,135.99,0.05065588]
[1768007064597,1.45518197,136.05,135.99,0.05065588]
[1768007064598,2.37823687,136.05,135.99,1.55689126]
[1768007065508,0.92286106,136.04,135.99,1.55689126]
[1768007085333,8.99595965,136.05,135.99,1.55689126]
[1768007088639,6.6243,136.04,135.99,1.55689126]
[1768007089140,0.91687768,136.05,135.99,1.55689126]
[1768007089438,7.54067768,136.05,135.99,1.55689126]
[1768007098644,2.36531061,136.02,135.99,0.05065588]
[1768007100740,0.90931849,136.01,135.96,1.60475241]
[1768007100949,2.3135931,136.0,135.94,1.60475241]
[1768007101848,0.85841113,135.99,135.94,1.60475241]
[1768007102945,86.8,136.0,135.94,1.60475241]
[1768007103246,8.93976423,136.01,135.94,1.60475241]
[1768007103445,95.73976423,136.01,135.94,1.60475241]
[1768007108248,0.85745953,136.0,135.94,1.60475241]
[1768007108652,0.85745953,135.99,135.94,1.60475241]
[1768007121466,6.6264,136.0,135.94,1.60475241]
[1768007122968,7.48025196,136.0,135.94,1.60475241]
[1768007123268,0.85385196,136.0,135.94,1.60475241]
[1768007125065,7.4789083,136.02,135.95,1.53947128]
[1768007125367,94.2989083,136.02,135.95,1.53947128]
[1768007125761,0.8534083,136.01,135.95,1.53947128]
[1768007126571,0.8534083,136.01,135.95,8.16807128]
[1768007126868,0.8534083,136.01,135.94,1.53947128]
[1768007127058,0.85301037,136.0,135.94,1.53947128]
[1768007132774,0.85200703,135.99,135.92,1.53947128]
[1768007133573,7.47880703,135.99,135.92,1.53947128]
[1768007136670,0.85426082,135.98,135.92,1.53947128]
[1768007139677,7.4794335,136.01,135.94,1.58548897]
[1768007140173,0.85341947,136.0,135.94,1.58548897]
[1768007143071,0.85212239,136.02,135.95,1.58548897]
[1768007155294,7.47752239,136.02,135.95,1.58548897]
[1768007160593,6.6246,136.04,135.96,1.5927534]
[1768007160791,6.6246,136.04,135.97,1.5927534]
[1768007161589,6.6246,136.04,135.98,1.5927534]
[1768007166899,0.83997811,136.05,135.98,1.5927534]
[1768007167490,0.83997811,136.05,135.99,1.47980882]
[1768007168698,0.83997811,136.05,136.0,1.47980882]
[1768007170500,7.46115611,136.07,136.0,1.47980882]
[1768007171301,0.8379744,136.08,136.01,1.47980882]
[1768007172097,3.11258412,136.1,136.02,1.47980882]
[1768007172301,0.05588489,136.06,136.02,1.47980882]
[1768007172698,0.83769607,136.1,136.05,1.53311388]
[1768007174401,0.053239,136.09,136.05,1.53311388]
[1768007181417,8.96567379,136.14,136.06,1.47980882]
[1768007182503,8.96567379,136.14,136.09,0.04763588]
[1768007184915,0.94547964,136.13,136.09,0.04763588]
[1768007190125,1.45368173,136.14,136.09,1.5274447]
[1768007190514,0.94538035,136.15,136.09,1.5274447]